[Event "Titled Tuesday Blitz May 4 2021"]
[White "Mirzoev, Azer"]
[Black "Redzisz, Michal"]
[WhiteFideId "13400304"]
[BlackFideId "21816107"]
[WhiteElo "2525"]
[BlackElo "1866"]
[Result "1-0"]
[Round "02"]
[TimeControl "180+1"]
[Date "2021.05.04"]
[WhiteClock "0:00:36"]
[BlackClock "0:00:01"]

1. c4 {[%clk 0:02:59]}  Nf6 {[%clk 0:02:58]} 2. Nc3 {[%clk 0:02:59]}  e6 {[%clk 0:02:57]} 3. Nf3 {[%clk 0:02:58]}  d5 {[%clk 0:02:56]} 4. d4 {[%clk 0:02:58]}  c5 {[%clk 0:02:55]} 5. e3 {[%clk 0:02:57]}  Nc6 {[%clk 0:02:53]} 6. cxd5 {[%clk 0:02:57]}  Nxd5 {[%clk 0:02:52]} 7. Bb5 {[%clk 0:02:58]}  Bd7 {[%clk 0:02:01]} 8. O-O {[%clk 0:02:56]}  a6 {[%clk 0:01:58]} 9. Bd3 {[%clk 0:02:55]}  cxd4 {[%clk 0:01:51]} 10. exd4 {[%clk 0:02:55]}  Nxc3 {[%clk 0:01:50]} 11. bxc3 {[%clk 0:02:54]}  Be7 {[%clk 0:01:51]} 12. Re1 {[%clk 0:02:53]}  O-O {[%clk 0:01:50]} 13. Qe2 {[%clk 0:02:40]}  Bf6 {[%clk 0:01:48]} 14. Qe4 {[%clk 0:02:38]}  g6 {[%clk 0:01:48]} 15. Bh6 {[%clk 0:02:38]}  Re8 {[%clk 0:01:45]} 16. h4 {[%clk 0:02:38]}  Ne7 {[%clk 0:01:40]} 17. Ne5 {[%clk 0:02:31]}  Nf5 {[%clk 0:01:27]} 18. Bg5 {[%clk 0:02:30]}  Bc6 {[%clk 0:00:56]} 19. Qf4 {[%clk 0:02:14]}  Rc8 {[%clk 0:00:16]} 20. Rad1 {[%clk 0:01:51]}  Kg7 {[%clk 0:00:10]} 21. Ng4 {[%clk 0:01:23]}  Bxg5 {[%clk 0:00:07]} 22. hxg5 {[%clk 0:01:23]}  Qc7 {[%clk 0:00:05]} 23. Ne5 {[%clk 0:01:16]}  h5 {[%clk 0:00:03]} 24. gxh6+ {[%clk 0:01:12]}  Nxh6 {[%clk 0:00:03]} 25. Qg5 {[%clk 0:00:58]}  Nf5 {[%clk 0:00:02]} 26. c4 {[%clk 0:00:48]}  Qe7 {[%clk 0:00:02]} 27. Qg4 {[%clk 0:00:48]}  Rh8 {[%clk 0:00:01]} 28. Nxg6 {[%clk 0:00:37]}  fxg6 {[%clk 0:00:01]} 29. Bxf5 {[%clk 0:00:36]} 1-0


[Site "https://www.chess.com"]

[Event "Titled Tuesday Blitz May 4 2021"]
[White "Molchanov, Alexander"]
[Black "Iniyan, P"]
[WhiteFideId "24177687"]
[BlackFideId "25002767"]
[WhiteElo "2526"]
[BlackElo "2400"]
[Result "0-1"]
[Round "02"]
[TimeControl "180+1"]
[Date "2021.05.04"]
[WhiteClock "0:00:01"]
[BlackClock "0:00:10"]

1. d4 {[%clk 0:03:00]}  Nf6 {[%clk 0:02:57]} 2. Nf3 {[%clk 0:02:59]}  e6 {[%clk 0:02:57]} 3. c4 {[%clk 0:02:59]}  b6 {[%clk 0:02:56]} 4. g3 {[%clk 0:02:58]}  Ba6 {[%clk 0:02:56]} 5. Qc2 {[%clk 0:02:58]}  Bb7 {[%clk 0:02:55]} 6. Bg2 {[%clk 0:02:57]}  c5 {[%clk 0:02:55]} 7. O-O {[%clk 0:02:49]}  cxd4 {[%clk 0:02:51]} 8. Nxd4 {[%clk 0:02:40]}  Bxg2 {[%clk 0:02:51]} 9. Kxg2 {[%clk 0:02:41]}  Be7 {[%clk 0:02:52]} 10. Nc3 {[%clk 0:02:37]}  O-O {[%clk 0:02:51]} 11. Rd1 {[%clk 0:02:32]}  a6 {[%clk 0:02:51]} 12. Qd3 {[%clk 0:02:30]}  Qc7 {[%clk 0:02:50]} 13. b3 {[%clk 0:02:24]}  Nc6 {[%clk 0:02:43]} 14. Nxc6 {[%clk 0:02:21]}  dxc6 {[%clk 0:02:36]} 15. Bb2 {[%clk 0:02:17]}  c5 {[%clk 0:02:24]} 16. Qf3 {[%clk 0:02:12]}  Rad8 {[%clk 0:02:22]} 17. Ne4 {[%clk 0:02:02]}  Ne8 {[%clk 0:01:59]} 18. Rxd8 {[%clk 0:01:40]}  Qxd8 {[%clk 0:02:00]} 19. e3 {[%clk 0:01:38]}  f5 {[%clk 0:01:44]} 20. Nc3 {[%clk 0:01:38]}  Nf6 {[%clk 0:01:14]} 21. Rd1 {[%clk 0:01:26]}  Qc8 {[%clk 0:01:15]} 22. Na4 {[%clk 0:01:11]}  Qc7 {[%clk 0:01:14]} 23. Qf4 {[%clk 0:01:08]}  Qc6+ {[%clk 0:01:12]} 24. Qf3 {[%clk 0:01:06]}  Qc7 {[%clk 0:00:54]} 25. Qf4 {[%clk 0:01:06]}  Qc6+ {[%clk 0:00:36]} 26. Qf3 {[%clk 0:01:06]}  Ne4 {[%clk 0:00:31]} 27. Be5 {[%clk 0:00:53]}  g5 {[%clk 0:00:28]} 28. Kg1 {[%clk 0:00:36]}  g4 {[%clk 0:00:28]} 29. Qg2 {[%clk 0:00:31]}  Rc8 {[%clk 0:00:25]} 30. h4 {[%clk 0:00:21]}  gxh3 {[%clk 0:00:21]} 31. Qxh3 {[%clk 0:00:20]}  Ng5 {[%clk 0:00:20]} 32. Qh6 {[%clk 0:00:20]}  Nf3+ {[%clk 0:00:20]} 33. Kf1 {[%clk 0:00:20]}  Nxe5 {[%clk 0:00:20]} 34. Qf4 {[%clk 0:00:11]}  Ng6 {[%clk 0:00:19]} 35. Qh6 {[%clk 0:00:11]}  Qf3 {[%clk 0:00:17]} 36. Rd7 {[%clk 0:00:10]}  Rd8 {[%clk 0:00:15]} 37. Nxb6 {[%clk 0:00:10]}  Rxd7 {[%clk 0:00:14]} 38. Nxd7 {[%clk 0:00:11]}  Qc6 {[%clk 0:00:13]} 39. Nb8 {[%clk 0:00:05]}  Qb7 {[%clk 0:00:13]} 40. Nxa6 {[%clk 0:00:05]}  Qxa6 {[%clk 0:00:13]} 41. g4 {[%clk 0:00:04]}  fxg4 {[%clk 0:00:12]} 42. Qh5 {[%clk 0:00:05]}  Qxa2 {[%clk 0:00:09]} 43. Qxg4 {[%clk 0:00:05]}  Qb1+ {[%clk 0:00:09]} 44. Kg2 {[%clk 0:00:05]}  Qf5 {[%clk 0:00:10]} 45. Qd1 {[%clk 0:00:01]}  Kf7 {[%clk 0:00:10]} 46. Qd7 {[%clk 0:00:01]}  Nh4+ {[%clk 0:00:10]} 47. Kf1 {[%clk 0:00:01]}  Qb1+ {[%clk 0:00:10]} 48. Ke2 {[%clk 0:00:01]}  Qxb3 {[%clk 0:00:10]} 0-1


[Site "https://www.chess.com"]

[Event "Titled Tuesday Blitz May 4 2021"]
[White "Nastore, Pavel-Alexandru"]
[Black "Mikhalsky, Vladimir"]
[WhiteFideId "1255002"]
[BlackFideId "14144352"]
[WhiteElo "1809"]
[BlackElo "2280"]
[Result "0-1"]
[Round "02"]
[TimeControl "180+1"]
[Date "2021.05.04"]
[WhiteClock "0:00:02"]
[BlackClock "0:00:32"]

1. c4 {[%clk 0:02:59]}  c5 {[%clk 0:02:59]} 2. Nf3 {[%clk 0:02:59]}  Nf6 {[%clk 0:02:58]} 3. Nc3 {[%clk 0:02:58]}  d5 {[%clk 0:02:58]} 4. cxd5 {[%clk 0:02:56]}  Nxd5 {[%clk 0:02:58]} 5. d4 {[%clk 0:02:56]}  Nxc3 {[%clk 0:02:57]} 6. bxc3 {[%clk 0:02:55]}  g6 {[%clk 0:02:57]} 7. e4 {[%clk 0:02:55]}  Bg7 {[%clk 0:02:57]} 8. Rb1 {[%clk 0:02:55]}  O-O {[%clk 0:02:57]} 9. h3 {[%clk 0:02:55]}  Nc6 {[%clk 0:02:52]} 10. d5 {[%clk 0:02:55]}  Ne5 {[%clk 0:02:41]} 11. Nxe5 {[%clk 0:02:34]}  Bxe5 {[%clk 0:02:40]} 12. Qb3 {[%clk 0:02:28]}  e6 {[%clk 0:02:24]} 13. Bc4 {[%clk 0:02:18]}  b5 {[%clk 0:02:12]} 14. Bxb5 {[%clk 0:02:13]}  Rb8 {[%clk 0:02:12]} 15. Qc2 {[%clk 0:01:55]}  a6 {[%clk 0:02:00]} 16. Bc4 {[%clk 0:01:47]}  Rxb1 {[%clk 0:01:59]} 17. Qxb1 {[%clk 0:01:47]}  Bxc3+ {[%clk 0:01:58]} 18. Ke2 {[%clk 0:01:42]}  exd5 {[%clk 0:01:57]} 19. Bxd5 {[%clk 0:01:41]}  a5 {[%clk 0:01:46]} 20. Be3 {[%clk 0:01:40]}  Ba6+ {[%clk 0:01:44]} 21. Kf3 {[%clk 0:01:08]}  Be5 {[%clk 0:01:43]} 22. g3 {[%clk 0:01:01]}  Kh8 {[%clk 0:01:34]} 23. Kg2 {[%clk 0:00:57]}  f5 {[%clk 0:01:34]} 24. f4 {[%clk 0:00:56]}  fxe4 {[%clk 0:01:28]} 25. Qxe4 {[%clk 0:00:54]}  Bg7 {[%clk 0:01:24]} 26. Rd1 {[%clk 0:00:43]}  Re8 {[%clk 0:01:24]} 27. Bf7 {[%clk 0:00:29]}  Bb7 {[%clk 0:00:53]} 28. Qxb7 {[%clk 0:00:28]}  Qxd1 {[%clk 0:00:52]} 29. Bxe8 {[%clk 0:00:27]}  Qe2+ {[%clk 0:00:52]} 30. Kh1 {[%clk 0:00:23]}  Qxe3 {[%clk 0:00:50]} 31. Bc6 {[%clk 0:00:14]}  Bd4 {[%clk 0:00:39]} 32. Qb1 {[%clk 0:00:03]}  Qxg3 {[%clk 0:00:36]} 33. Bg2 {[%clk 0:00:02]}  Qxf4 {[%clk 0:00:34]} 34. Qb7 {[%clk 0:00:02]}  Qc1+ {[%clk 0:00:32]} 35. Kh2 {[%clk 0:00:02]}  Be5# {[%clk 0:00:32]} 0-1


[Site "https://www.chess.com"]

[Event "Titled Tuesday Blitz May 4 2021"]
[White "Nazaretyan, Tigran"]
[Black "Sargissyan, Sargis"]
[WhiteFideId "24162345"]
[BlackFideId "13303210"]
[WhiteElo "2276"]
[BlackElo "2174"]
[Result "1-0"]
[Round "02"]
[TimeControl "180+1"]
[Date "2021.05.04"]
[WhiteClock "0:01:10"]
[BlackClock "0:00:03"]

1. d4 {[%clk 0:03:00]}  Nf6 {[%clk 0:02:35]} 2. c4 {[%clk 0:02:59]}  g6 {[%clk 0:02:35]} 3. Nc3 {[%clk 0:02:58]}  d5 {[%clk 0:02:35]} 4. Nf3 {[%clk 0:02:58]}  Bg7 {[%clk 0:02:34]} 5. Bg5 {[%clk 0:02:58]}  Ne4 {[%clk 0:02:28]} 6. Bh4 {[%clk 0:02:58]}  Nxc3 {[%clk 0:02:27]} 7. bxc3 {[%clk 0:02:58]}  c6 {[%clk 0:02:13]} 8. e3 {[%clk 0:02:56]}  O-O {[%clk 0:02:11]} 9. Qb3 {[%clk 0:02:46]}  f6 {[%clk 0:01:46]} 10. Be2 {[%clk 0:02:39]}  dxc4 {[%clk 0:01:33]} 11. Bxc4+ {[%clk 0:02:38]}  Kh8 {[%clk 0:01:34]} 12. a4 {[%clk 0:02:37]}  Nd7 {[%clk 0:01:32]} 13. a5 {[%clk 0:02:36]}  Qc7 {[%clk 0:01:26]} 14. O-O {[%clk 0:02:32]}  e5 {[%clk 0:01:26]} 15. Bg3 {[%clk 0:02:30]}  Re8 {[%clk 0:01:18]} 16. Rfd1 {[%clk 0:02:28]}  Qd8 {[%clk 0:00:56]} 17. dxe5 {[%clk 0:02:24]}  fxe5 {[%clk 0:00:55]} 18. Bf7 {[%clk 0:02:11]}  Re7 {[%clk 0:00:49]} 19. Bh4 {[%clk 0:02:11]}  Qf8 {[%clk 0:00:45]} 20. Bxe7 {[%clk 0:02:08]}  Qxe7 {[%clk 0:00:46]} 21. Qe6 {[%clk 0:02:07]}  Qf8 {[%clk 0:00:41]} 22. Rxd7 {[%clk 0:01:59]}  Bxd7 {[%clk 0:00:41]} 23. Qxd7 {[%clk 0:01:59]}  Rd8 {[%clk 0:00:40]} 24. Qxb7 {[%clk 0:01:59]}  Qc5 {[%clk 0:00:37]} 25. Qb3 {[%clk 0:01:49]}  Qd6 {[%clk 0:00:24]} 26. g3 {[%clk 0:01:43]}  c5 {[%clk 0:00:22]} 27. e4 {[%clk 0:01:42]}  Qd3 {[%clk 0:00:20]} 28. Ng5 {[%clk 0:01:36]}  Qd2 {[%clk 0:00:18]} 29. Ne6 {[%clk 0:01:31]}  Rc8 {[%clk 0:00:14]} 30. Nxg7 {[%clk 0:01:30]}  Kxg7 {[%clk 0:00:14]} 31. Bd5 {[%clk 0:01:29]}  Rf8 {[%clk 0:00:13]} 32. Rf1 {[%clk 0:01:19]}  h5 {[%clk 0:00:13]} 33. h4 {[%clk 0:01:18]}  g5 {[%clk 0:00:12]} 34. Qb7+ {[%clk 0:01:16]}  Kh8 {[%clk 0:00:11]} 35. Qe7 {[%clk 0:01:15]}  Rf3 {[%clk 0:00:05]} 36. Qxe5+ {[%clk 0:01:14]}  Kh7 {[%clk 0:00:05]} 37. Qxg5 {[%clk 0:01:13]}  Qxg5 {[%clk 0:00:04]} 38. hxg5 {[%clk 0:01:14]}  Rxc3 {[%clk 0:00:05]} 39. Kg2 {[%clk 0:01:11]}  Ra3 {[%clk 0:00:05]} 40. f4 {[%clk 0:01:09]}  Rxa5 {[%clk 0:00:05]} 41. f5 {[%clk 0:01:10]}  Ra4 {[%clk 0:00:03]} 42. f6 {[%clk 0:01:10]}  c4 {[%clk 0:00:03]} 43. f7 {[%clk 0:01:10]} 1-0


[Site "https://www.chess.com"]

[Event "Titled Tuesday Blitz May 4 2021"]
[White "Nesterov, Arseniy"]
[Black "Pantzar, Milton"]
[WhiteFideId "24198455"]
[BlackFideId "1721003"]
[WhiteElo "2441"]
[BlackElo "2323"]
[Result "0-1"]
[Round "02"]
[TimeControl "180+1"]
[Date "2021.05.04"]
[WhiteClock "0:00:01"]
[BlackClock "0:00:10"]

1. d4 {[%clk 0:03:00]}  d5 {[%clk 0:02:59]} 2. c4 {[%clk 0:03:00]}  e6 {[%clk 0:02:58]} 3. Nf3 {[%clk 0:03:00]}  c5 {[%clk 0:02:57]} 4. cxd5 {[%clk 0:03:00]}  exd5 {[%clk 0:02:57]} 5. Nc3 {[%clk 0:02:59]}  Nf6 {[%clk 0:02:56]} 6. g3 {[%clk 0:03:00]}  Nc6 {[%clk 0:02:56]} 7. Bg2 {[%clk 0:03:00]}  cxd4 {[%clk 0:02:56]} 8. Nxd4 {[%clk 0:03:01]}  Bc5 {[%clk 0:02:55]} 9. Nb3 {[%clk 0:02:59]}  Bb6 {[%clk 0:02:54]} 10. O-O {[%clk 0:02:59]}  d4 {[%clk 0:02:51]} 11. Na4 {[%clk 0:02:58]}  O-O {[%clk 0:02:51]} 12. Bg5 {[%clk 0:02:55]}  Re8 {[%clk 0:02:50]} 13. Re1 {[%clk 0:02:55]}  h6 {[%clk 0:02:50]} 14. Bxf6 {[%clk 0:02:54]}  Qxf6 {[%clk 0:02:51]} 15. Nxb6 {[%clk 0:02:55]}  axb6 {[%clk 0:02:52]} 16. Bxc6 {[%clk 0:02:53]}  bxc6 {[%clk 0:02:53]} 17. Qxd4 {[%clk 0:02:54]}  Qd8 {[%clk 0:02:53]} 18. Qc3 {[%clk 0:02:50]}  c5 {[%clk 0:02:50]} 19. Rad1 {[%clk 0:02:49]}  Qe7 {[%clk 0:02:36]} 20. Nc1 {[%clk 0:02:48]}  Bh3 {[%clk 0:02:14]} 21. a3 {[%clk 0:02:32]}  Ra4 {[%clk 0:02:05]} 22. f3 {[%clk 0:02:16]}  Rd8 {[%clk 0:01:40]} 23. Rxd8+ {[%clk 0:02:10]}  Qxd8 {[%clk 0:01:40]} 24. Nd3 {[%clk 0:02:06]}  Bf5 {[%clk 0:01:27]} 25. e4 {[%clk 0:01:59]}  Bc8 {[%clk 0:01:18]} 26. b4 {[%clk 0:01:47]}  Ba6 {[%clk 0:01:08]} 27. Nf2 {[%clk 0:00:36]}  cxb4 {[%clk 0:01:03]} 28. axb4 {[%clk 0:00:37]}  Qe7 {[%clk 0:00:47]} 29. Rb1 {[%clk 0:00:27]}  Ra2 {[%clk 0:00:43]} 30. b5 {[%clk 0:00:24]}  Bb7 {[%clk 0:00:40]} 31. Rb2 {[%clk 0:00:23]}  Ra1+ {[%clk 0:00:38]} 32. Kg2 {[%clk 0:00:23]}  Qe8 {[%clk 0:00:18]} 33. Qc7 {[%clk 0:00:19]}  Bc8 {[%clk 0:00:16]} 34. Rd2 {[%clk 0:00:18]}  Kh7 {[%clk 0:00:10]} 35. Rd8 {[%clk 0:00:17]}  Qxb5 {[%clk 0:00:10]} 36. Nd3 {[%clk 0:00:01]}  Be6 {[%clk 0:00:10]} 0-1


[Site "https://www.chess.com"]

[Event "Titled Tuesday Blitz May 4 2021"]
[White "Nouri, Alekhine"]
[Black "Albuquerque Junior,Wellington S."]
[WhiteFideId "5216184"]
[BlackFideId "2151480"]
[WhiteElo "1894"]
[BlackElo "2042"]
[Result "1-0"]
[Round "02"]
[TimeControl "180+1"]
[Date "2021.05.04"]
[WhiteClock "0:00:22"]
[BlackClock "0:00:01"]

1. e4 {[%clk 0:03:00]}  c5 {[%clk 0:02:59]} 2. Nc3 {[%clk 0:03:00]}  e6 {[%clk 0:02:58]} 3. f4 {[%clk 0:02:59]}  Nc6 {[%clk 0:02:56]} 4. Nf3 {[%clk 0:02:59]}  Nge7 {[%clk 0:02:54]} 5. e5 {[%clk 0:02:56]}  Nf5 {[%clk 0:02:51]} 6. Ne4 {[%clk 0:02:55]}  d5 {[%clk 0:02:49]} 7. exd6 {[%clk 0:02:55]}  b6 {[%clk 0:02:39]} 8. Bb5 {[%clk 0:02:52]}  Bd7 {[%clk 0:02:33]} 9. Qe2 {[%clk 0:02:50]}  Nxd6 {[%clk 0:02:30]} 10. Nxd6+ {[%clk 0:02:50]}  Bxd6 {[%clk 0:02:30]} 11. d3 {[%clk 0:02:50]}  O-O {[%clk 0:02:28]} 12. O-O {[%clk 0:02:50]}  a6 {[%clk 0:02:19]} 13. Ba4 {[%clk 0:02:48]}  b5 {[%clk 0:02:18]} 14. Bb3 {[%clk 0:02:48]}  Na5 {[%clk 0:02:17]} 15. Bd2 {[%clk 0:02:47]}  Nxb3 {[%clk 0:02:14]} 16. axb3 {[%clk 0:02:47]}  Bc6 {[%clk 0:02:13]} 17. Ne5 {[%clk 0:02:46]}  Bb7 {[%clk 0:02:13]} 18. Rae1 {[%clk 0:02:42]}  Qc7 {[%clk 0:02:09]} 19. Qg4 {[%clk 0:02:40]}  f5 {[%clk 0:02:03]} 20. Qh4 {[%clk 0:02:38]}  Rae8 {[%clk 0:02:03]} 21. Nf3 {[%clk 0:02:37]}  Bxf3 {[%clk 0:01:53]} 22. Rxf3 {[%clk 0:02:35]}  e5 {[%clk 0:01:49]} 23. fxe5 {[%clk 0:02:30]}  Bxe5 {[%clk 0:01:48]} 24. c3 {[%clk 0:02:30]}  Bf6 {[%clk 0:01:42]} 25. Qf2 {[%clk 0:02:28]}  g6 {[%clk 0:01:39]} 26. Bf4 {[%clk 0:02:27]}  Rxe1+ {[%clk 0:01:39]} 27. Qxe1 {[%clk 0:02:27]}  Qe7 {[%clk 0:01:39]} 28. Re3 {[%clk 0:02:27]}  Qd7 {[%clk 0:01:37]} 29. Bh6 {[%clk 0:02:20]}  Rd8 {[%clk 0:01:34]} 30. h3 {[%clk 0:02:20]}  Kf7 {[%clk 0:01:33]} 31. Qe2 {[%clk 0:02:17]}  b4 {[%clk 0:01:33]} 32. Kh1 {[%clk 0:01:50]}  Re8 {[%clk 0:01:10]} 33. d4 {[%clk 0:01:49]}  Rxe3 {[%clk 0:01:04]} 34. Bxe3 {[%clk 0:01:50]}  bxc3 {[%clk 0:00:57]} 35. bxc3 {[%clk 0:01:51]}  cxd4 {[%clk 0:00:56]} 36. cxd4 {[%clk 0:01:51]}  Qb5 {[%clk 0:00:52]} 37. Qc2 {[%clk 0:01:33]}  Be7 {[%clk 0:00:39]} 38. Qc7 {[%clk 0:01:26]}  Qxb3 {[%clk 0:00:24]} 39. Bg5 {[%clk 0:01:25]}  Qe6 {[%clk 0:00:16]} 40. d5 {[%clk 0:01:22]}  Qe1+ {[%clk 0:00:17]} 41. Kh2 {[%clk 0:01:22]}  Ke8 {[%clk 0:00:17]} 42. Bf4 {[%clk 0:01:04]}  Qb4 {[%clk 0:00:13]} 43. Qc8+ {[%clk 0:00:59]}  Kf7 {[%clk 0:00:11]} 44. Qe6+ {[%clk 0:00:59]}  Kf8 {[%clk 0:00:11]} 45. Be5 {[%clk 0:00:52]}  Qc4 {[%clk 0:00:08]} 46. Qd7 {[%clk 0:00:39]}  Qe4 {[%clk 0:00:05]} 47. Bb8 {[%clk 0:00:38]}  f4 {[%clk 0:00:02]} 48. Qc8+ {[%clk 0:00:33]}  Kf7 {[%clk 0:00:02]} 49. Qb7 {[%clk 0:00:22]}  Ke8 {[%clk 0:00:01]} 50. Qc6+ {[%clk 0:00:22]} 1-0


[Site "https://www.chess.com"]

[Event "Titled Tuesday Blitz May 4 2021"]
[White "Novikova, Galina"]
[Black "AwareIdea"]
[WhiteFideId "4157095"]
[WhiteElo "1966"]
[BlackElo "2523"]
[Result "0-1"]
[Round "02"]
[TimeControl "180+1"]
[Date "2021.05.04"]
[WhiteClock "0:00:52"]
[BlackClock "0:01:06"]

1. e4 {[%clk 0:03:00]}  e5 {[%clk 0:02:56]} 2. Nf3 {[%clk 0:03:00]}  Nc6 {[%clk 0:02:55]} 3. d4 {[%clk 0:03:00]}  exd4 {[%clk 0:02:54]} 4. Nxd4 {[%clk 0:03:01]}  Nf6 {[%clk 0:02:54]} 5. Nc3 {[%clk 0:02:57]}  Bb4 {[%clk 0:02:53]} 6. Nxc6 {[%clk 0:02:56]}  bxc6 {[%clk 0:02:54]} 7. Bd3 {[%clk 0:02:55]}  O-O {[%clk 0:02:54]} 8. O-O {[%clk 0:02:54]}  Re8 {[%clk 0:02:54]} 9. Bg5 {[%clk 0:02:52]}  Rb8 {[%clk 0:02:53]} 10. Qf3 {[%clk 0:02:35]}  Bd6 {[%clk 0:02:52]} 11. Nd1 {[%clk 0:02:19]}  Be5 {[%clk 0:02:49]} 12. c3 {[%clk 0:02:18]}  d6 {[%clk 0:02:49]} 13. Rb1 {[%clk 0:02:11]}  h6 {[%clk 0:02:47]} 14. Bh4 {[%clk 0:02:10]}  c5 {[%clk 0:02:38]} 15. Ne3 {[%clk 0:02:09]}  Kh7 {[%clk 0:02:23]} 16. Qd1 {[%clk 0:02:01]}  g5 {[%clk 0:02:17]} 17. Bg3 {[%clk 0:02:01]}  Be6 {[%clk 0:02:08]} 18. f4 {[%clk 0:01:51]}  gxf4 {[%clk 0:02:05]} 19. Bxf4 {[%clk 0:01:52]}  Bxa2 {[%clk 0:02:03]} 20. Nf5 {[%clk 0:01:20]}  Bxb1 {[%clk 0:01:50]} 21. Bxb1 {[%clk 0:01:19]}  Bxf4 {[%clk 0:01:43]} 22. Rxf4 {[%clk 0:01:20]}  Re5 {[%clk 0:01:42]} 23. Rh4 {[%clk 0:01:17]}  Ng8 {[%clk 0:01:37]} 24. Qh5 {[%clk 0:01:03]}  Qf6 {[%clk 0:01:29]} 25. Rg4 {[%clk 0:01:03]}  Rxb2 {[%clk 0:01:18]} 26. Bd3 {[%clk 0:00:58]}  a5 {[%clk 0:01:12]} 27. Rg7+ {[%clk 0:00:57]}  Qxg7 {[%clk 0:01:11]} 28. Nxg7 {[%clk 0:00:55]}  Rxh5 {[%clk 0:01:12]} 29. Nxh5 {[%clk 0:00:55]}  a4 {[%clk 0:01:07]} 30. e5+ {[%clk 0:00:55]}  Kh8 {[%clk 0:01:08]} 31. exd6 {[%clk 0:00:52]}  cxd6 {[%clk 0:01:08]} 32. Bc4 {[%clk 0:00:52]}  a3 {[%clk 0:01:06]} 0-1


[Site "https://www.chess.com"]

[Event "Titled Tuesday Blitz May 4 2021"]
[White "Nozdrachev, Leonid"]
[Black "Onyshchuk, Volodymyr"]
[WhiteFideId "24113433"]
[BlackFideId "14114038"]
[WhiteElo "2246"]
[BlackElo "2605"]
[Result "0-1"]
[Round "02"]
[TimeControl "180+1"]
[Date "2021.05.04"]
[WhiteClock "0:00:01"]
[BlackClock "0:00:55"]

1. e4 {[%clk 0:03:00]}  d6 {[%clk 0:03:00]} 2. d4 {[%clk 0:02:59]}  Nf6 {[%clk 0:03:01]} 3. Nc3 {[%clk 0:02:58]}  g6 {[%clk 0:03:01]} 4. Nf3 {[%clk 0:02:57]}  Bg7 {[%clk 0:03:01]} 5. Be2 {[%clk 0:02:57]}  O-O {[%clk 0:03:01]} 6. O-O {[%clk 0:02:57]}  a6 {[%clk 0:03:01]} 7. a4 {[%clk 0:02:55]}  Nc6 {[%clk 0:03:00]} 8. h3 {[%clk 0:02:54]}  e5 {[%clk 0:02:59]} 9. Be3 {[%clk 0:02:50]}  exd4 {[%clk 0:02:58]} 10. Nxd4 {[%clk 0:02:51]}  Re8 {[%clk 0:02:57]} 11. Nxc6 {[%clk 0:02:48]}  bxc6 {[%clk 0:02:56]} 12. Bd3 {[%clk 0:02:44]}  a5 {[%clk 0:02:56]} 13. Re1 {[%clk 0:02:35]}  Nd7 {[%clk 0:02:55]} 14. Qd2 {[%clk 0:02:30]}  Rb8 {[%clk 0:02:49]} 15. Rab1 {[%clk 0:02:26]}  Nc5 {[%clk 0:02:35]} 16. Bxc5 {[%clk 0:02:18]}  dxc5 {[%clk 0:02:35]} 17. b3 {[%clk 0:02:11]}  c4 {[%clk 0:02:34]} 18. bxc4 {[%clk 0:02:07]}  Rxb1 {[%clk 0:02:25]} 19. Rxb1 {[%clk 0:01:53]}  Be6 {[%clk 0:02:25]} 20. Qe1 {[%clk 0:01:47]}  Qd4 {[%clk 0:02:21]} 21. Ne2 {[%clk 0:01:44]}  Qc5 {[%clk 0:02:21]} 22. Nc1 {[%clk 0:01:34]}  Bxc4 {[%clk 0:02:06]} 23. Nb3 {[%clk 0:01:30]}  Bxb3 {[%clk 0:02:06]} 24. cxb3 {[%clk 0:01:25]}  Rd8 {[%clk 0:02:01]} 25. Bc4 {[%clk 0:01:22]}  Bd4 {[%clk 0:01:56]} 26. Qe2 {[%clk 0:01:19]}  Kg7 {[%clk 0:01:54]} 27. Qf3 {[%clk 0:01:13]}  Rd7 {[%clk 0:01:54]} 28. g3 {[%clk 0:01:09]}  h5 {[%clk 0:01:52]} 29. h4 {[%clk 0:01:08]}  Be5 {[%clk 0:01:49]} 30. Kg2 {[%clk 0:00:55]}  Qe7 {[%clk 0:01:38]} 31. Rd1 {[%clk 0:00:49]}  Bd4 {[%clk 0:01:37]} 32. Rd3 {[%clk 0:00:41]}  c5 {[%clk 0:01:30]} 33. Rd1 {[%clk 0:00:35]}  Rd6 {[%clk 0:01:30]} 34. Rd2 {[%clk 0:00:31]}  c6 {[%clk 0:01:30]} 35. Qd3 {[%clk 0:00:23]}  g5 {[%clk 0:01:26]} 36. Qf3 {[%clk 0:00:20]}  gxh4 {[%clk 0:01:21]} 37. Qxh5 {[%clk 0:00:16]}  Rg6 {[%clk 0:01:14]} 38. Qf3 {[%clk 0:00:10]}  hxg3 {[%clk 0:01:10]} 39. fxg3 {[%clk 0:00:09]}  Be5 {[%clk 0:01:09]} 40. g4 {[%clk 0:00:08]}  Bd4 {[%clk 0:01:01]} 41. Kf1 {[%clk 0:00:07]}  Rf6 {[%clk 0:01:00]} 42. Rd3 {[%clk 0:00:04]}  Qxe4 {[%clk 0:00:56]} 43. Kg2 {[%clk 0:00:01]}  Rxf3 {[%clk 0:00:55]} 44. Rxf3 {[%clk 0:00:02]}  f6 {[%clk 0:00:55]} 45. Kg3 {[%clk 0:00:02]}  Be5+ {[%clk 0:00:55]} 46. Kg2 {[%clk 0:00:02]}  Qxg4+ {[%clk 0:00:55]} 47. Kf2 {[%clk 0:00:01]}  Bd4+ {[%clk 0:00:55]} 48. Ke2 {[%clk 0:00:01]}  Qe4+ {[%clk 0:00:55]} 0-1


[Site "https://www.chess.com"]

[Event "Titled Tuesday Blitz May 4 2021"]
[White "Obsivac, Josef"]
[Black "Abdusattorov, Nodirbek"]
[WhiteFideId "303690"]
[BlackFideId "14204118"]
[WhiteElo "2199"]
[BlackElo "2662"]
[Result "0-1"]
[Round "02"]
[TimeControl "180+1"]
[Date "2021.05.04"]
[WhiteClock "0:00:56"]
[BlackClock "0:01:57"]

1. d4 {[%clk 0:03:00]}  Nf6 {[%clk 0:02:58]} 2. c4 {[%clk 0:03:00]}  e6 {[%clk 0:02:59]} 3. Nf3 {[%clk 0:03:00]}  c5 {[%clk 0:02:59]} 4. d5 {[%clk 0:02:59]}  exd5 {[%clk 0:03:00]} 5. cxd5 {[%clk 0:02:59]}  d6 {[%clk 0:03:01]} 6. Nc3 {[%clk 0:02:58]}  g6 {[%clk 0:03:02]} 7. Nd2 {[%clk 0:02:58]}  Bg7 {[%clk 0:03:02]} 8. e4 {[%clk 0:02:58]}  O-O {[%clk 0:03:03]} 9. Be2 {[%clk 0:02:58]}  Re8 {[%clk 0:03:03]} 10. O-O {[%clk 0:02:58]}  Nbd7 {[%clk 0:02:59]} 11. h3 {[%clk 0:02:56]}  a6 {[%clk 0:02:50]} 12. a4 {[%clk 0:02:56]}  b6 {[%clk 0:02:47]} 13. Ra3 {[%clk 0:02:42]}  Rb8 {[%clk 0:02:47]} 14. f4 {[%clk 0:02:40]}  c4 {[%clk 0:02:26]} 15. Kh2 {[%clk 0:02:12]}  b5 {[%clk 0:02:25]} 16. axb5 {[%clk 0:02:09]}  axb5 {[%clk 0:02:26]} 17. e5 {[%clk 0:02:01]}  dxe5 {[%clk 0:02:24]} 18. fxe5 {[%clk 0:02:01]}  Nxe5 {[%clk 0:02:24]} 19. Ra7 {[%clk 0:01:53]}  Qb6 {[%clk 0:02:20]} 20. Ra1 {[%clk 0:01:45]}  Bf5 {[%clk 0:02:18]} 21. Rxf5 {[%clk 0:01:35]}  gxf5 {[%clk 0:02:18]} 22. Nf1 {[%clk 0:01:35]}  b4 {[%clk 0:02:16]} 23. Na4 {[%clk 0:01:33]}  Qd6 {[%clk 0:02:16]} 24. Kh1 {[%clk 0:01:29]}  Qxd5 {[%clk 0:02:07]} 25. Qc2 {[%clk 0:01:25]}  Ne4 {[%clk 0:02:05]} 26. Be3 {[%clk 0:01:15]}  Nd3 {[%clk 0:02:03]} 27. Kg1 {[%clk 0:01:06]}  b3 {[%clk 0:02:02]} 28. Qd1 {[%clk 0:01:02]}  f4 {[%clk 0:01:59]} 29. Ba7 {[%clk 0:00:56]}  Ra8 {[%clk 0:01:57]} 0-1


[Site "https://www.chess.com"]